bitfinex/quotes_SOLUSD_20240718
["timestamp","ask_amount","ask_price","bid_price","bid_amount"]
[1721299919459,6.57098159,159.16,159.13,1.25683461]
[1721299919668,17.2507528,159.18,159.14,12.15]
[1721299919669,0.8200528,159.18,159.14,12.15]
[1721299919957,0.8200528,159.18,159.15,46.25649619]
[1721299920255,12.9700528,159.18,159.13,12.15]
[1721299920460,12.15,159.16,159.11,12.15]
[1721299920655,12.15,159.16,159.12,46.2566624]
[1721299921141,13.65,159.17,159.12,46.2566624]
[1721299921339,12.15,159.17,159.12,58.4066624]
[1721299921540,12.15,159.17,159.13,1.2566313]
[1721299921735,12.15,159.15,159.13,1.2566313]
[1721299922333,12.15,159.14,159.13,1.2566313]
[1721299922528,12.15,159.14,159.12,45.0]
[1721299922828,12.15,159.17,159.13,1.25672319]
[1721299923052,2.3200528,159.18,159.13,1.25672319]
[1721299923053,12.15,159.16,159.13,1.25672319]
[1721299923462,2.3200528,159.18,159.13,1.25672319]
[1721299923463,12.15,159.17,159.13,1.25672319]
[1721299927570,0.8200528,159.18,159.13,13.40672319]
[1721299927857,0.8200528,159.18,159.14,57.15]
[1721299928069,0.8200528,159.18,159.16,12.15]
[1721299928288,0.8200528,159.18,159.17,46.25617806]
[1721299929746,0.8200528,159.18,159.17,1.25618174]
[1721299929963,0.8200528,159.18,159.11,12.15]
[1721299930156,12.15,159.17,159.12,1.25647739]
[1721299930365,12.15,159.17,159.12,13.40647739]
[1721299930963,12.15,159.17,159.12,14.8602563]
[1721299931163,0.8200528,159.18,159.14,12.15]
[1721299931333,0.8200528,159.18,159.15,46.25629819]
[1721299932952,0.8200528,159.18,159.15,58.40629819]
[1721299933462,0.8200528,159.18,159.15,47.70980306]
[1721299934074,0.8200528,159.18,159.16,12.15]
[1721299934277,0.8200528,159.18,159.17,46.25617745]
[1721299936552,0.8200528,159.18,159.17,57.15]
[1721299936878,0.8200528,159.18,159.17,45.0]
[1721299937075,0.8200528,159.18,159.17,46.25616389]
[1721299937267,0.8200528,159.18,159.17,58.40616389]
[1721299937855,0.8200528,159.18,159.17,46.25616389]
[1721299939756,0.8200528,159.18,159.17,1.25616389]
[1721299940081,0.8200528,159.18,159.16,1.25623938]
[1721299940561,12.15,159.17,159.16,1.25623938]
[1721299941073,12.15,159.17,159.13,1.25644321]
[1721299941265,12.15,159.16,159.13,1.25644321]
[1721299941577,12.15,159.15,159.13,1.25644321]
[1721299941956,12.15,159.15,159.11,1.2565564]
[1721299942166,12.15,159.15,159.11,2.71042668]
[1721299942780,12.15,159.15,159.11,47.71042668]
[1721299942983,12.15,159.15,159.11,46.45387028]
[1721299943362,0.8200528,159.18,159.11,46.45387028]
[1721299943568,12.15,159.14,159.11,46.45387028]
[1721299944281,0.8200528,159.18,159.12,1.25660405]
[1721299944453,12.15,159.17,159.12,59.86038296]
[1721299945882,12.15,159.16,159.12,47.71038296]
[1721299948366,0.8200528,159.18,159.12,59.86038296]
[1721299948564,12.15,159.17,159.12,59.86038296]
[1721299949590,12.15,159.17,159.12,47.71038296]
[1721299949970,0.8200528,159.18,159.13,13.77368755]
[1721299950162,0.8200528,159.18,159.14,47.70987408]
[1721299950363,0.8200528,159.18,159.15,1.25627994]
[1721299951390,12.9700528,159.18,159.15,1.25627994]
[1721299953568,0.8200528,159.18,159.15,1.25627994]
[1721299954476,0.8200528,159.18,159.15,13.40627994]
[1721299954673,0.8200528,159.18,159.16,45.0]
[1721299954876,0.8200528,159.18,159.17,1.25624439]
[1721299955802,0.8200528,159.18,159.15,1.25628209]
[1721299956286,0.8200528,159.18,159.15,2.70978696]
[1721299956468,0.8200528,159.18,159.15,14.85978696]
[1721299956671,0.8200528,159.18,159.16,45.0]
[1721299956995,0.8200528,159.18,159.17,1.25621802]
[1721299965396,0.8200528,159.18,159.17,60.19954026]
[1721299966579,0.8200528,159.18,159.17,48.04954026]
[1721299967900,0.8200528,159.18,159.17,47.87954026]
[1721299968198,0.8200528,159.18,159.17,47.70954026]
[1721299970711,0.8200528,159.18,159.17,60.02954026]
[1721299972607,0.8200528,159.18,159.17,60.19954026]
[1721299975379,0.8200528,159.18,159.17,60.02954026]
[1721299975587,0.8200528,159.18,159.17,47.70954026]
[1721299975787,0.8200528,159.18,159.17,1.45332224]
[1721299975988,12.9700528,159.18,159.17,2.70948234]
[1721299976198,0.8200528,159.18,159.17,1.45332224]
[1721299976804,0.8200528,159.18,159.17,14.85924392]
[1721299977012,0.8200528,159.18,159.17,60.19924392]
[1721299980606,0.8200528,159.18,159.17,47.87924392]
[1721299981008,0.8200528,159.18,159.17,2.87924392]
[1721299981311,0.8200528,159.18,159.17,2.87943164]
[1721299981811,0.8200528,159.18,159.17,2.70943164]
[1721299982486,0.8200528,159.18,159.17,1.45332224]
[1721299982711,0.8200528,159.18,159.17,2.70947505]
[1721299983601,0.8200528,159.18,159.17,1.45332224]
[1721299985705,0.8200528,159.18,159.17,2.70939205]
[1721299986118,0.8200528,159.18,159.17,47.70939205]
[1721299989918,0.8200528,159.18,159.17,2.70939205]
[1721299996806,0.8200528,159.18,159.17,14.85939205]
[1721299997012,0.8200528,159.18,159.17,59.85939205]
[1721299998038,0.8200528,159.18,159.17,69.29358958]
[1721299998513,0.8200528,159.18,159.17,59.85939205]
[1721299998713,0.8200528,159.18,159.17,69.29289678]
[1721299999038,0.8200528,159.18,159.17,47.70939205]
[1721300005224,0.8200528,159.18,159.17,2.70939205]
[1721300007422,0.8200528,159.18,159.17,12.14403265]
[1721300007621,0.8200528,159.18,159.17,57.14403265]
[1721300007824,0.8200528,159.18,159.17,47.70939205]
[1721300008426,0.8200528,159.18,159.17,57.14346881]
[1721300008830,0.8200528,159.18,159.17,47.70939205]
[1721300013653,0.8200528,159.18,159.17,57.14363955]
[1721300013846,0.8200528,159.18,159.17,47.70939205]
[1721300015462,0.8200528,159.18,159.17,57.14363955]
[1721300017451,0.8200528,159.18,159.17,69.46363955]
[1721300018061,0.8200528,159.18,159.17,69.63363955]
[1721300018246,0.8200528,159.18,159.17,69.63308621]
[1721300018443,0.8200528,159.18,159.17,60.19939205]
[1721300021070,0.8200528,159.18,159.17,60.02939205]
[1721300021268,0.8200528,159.18,159.17,57.1430171]
[1721300021452,0.8200528,159.18,159.17,47.70939205]
[1721300021771,0.8200528,159.18,159.17,12.14303801]
[1721300021960,0.8200528,159.18,159.17,57.14303801]
[1721300022469,0.8200528,159.18,159.17,69.29303801]
[1721300022664,0.8200528,159.18,159.17,59.85939205]
[1721300023571,0.8200528,159.18,159.17,58.94332224]
[1721300024675,0.8200528,159.18,159.17,60.19926621]
[1721300025369,12.15,159.27,159.18,10.0]
[1721300025676,1.5,159.29,159.21,12.15]
[1721300025901,1.5,159.29,159.22,58.40574115]
[1721300026069,12.15,159.27,159.22,58.40574115]
[1721300026258,12.15,159.27,159.22,45.75574115]
[1721300026986,12.15,159.26,159.22,45.75574115]
[1721300027672,15.6659,159.3,159.22,57.90574115]
[1721300027886,12.15,159.28,159.22,57.90574115]
[1721300028378,12.15,159.28,159.22,59.358607]
[1721300028782,12.15,159.28,159.22,47.208607]
[1721300028952,12.15,159.28,159.22,14.358607]
[1721300029154,12.15,159.28,159.23,45.0]
[1721300029355,12.15,159.28,159.24,0.94716275]
[1721300029797,15.6659,159.3,159.24,0.94716275]
[1721300030084,12.15,159.29,159.24,13.09716275]
[1721300030259,12.15,159.29,159.25,45.0]
[1721300030465,12.15,159.28,159.26,0.94707793]
[1721300031263,15.6659,159.3,159.27,0.94716426]
[1721300031582,12.15,159.28,159.27,0.94716426]
[1721300031756,12.15,159.28,159.26,0.94711614]
[1721300031960,12.15,159.28,159.27,0.94710975]
[1721300032163,12.15,159.28,159.26,0.94714044]
[1721300033062,12.15,159.28,159.27,0.94719882]
[1721300033257,12.15,159.29,159.26,0.94707447]
[1721300033559,12.15,159.29,159.27,0.94699464]
[1721300034164,15.6659,159.3,159.27,0.94699464]
[1721300034373,22.62877232,159.34,159.26,0.94682183]
[1721300034568,12.15,159.31,159.27,0.94660253]
[1721300034763,12.15,159.31,159.27,45.94660253]
[1721300035464,12.15,159.32,159.27,45.94660253]
[1721300035989,12.15,159.31,159.27,45.94660253]
[1721300036486,12.15,159.3,159.27,45.94660253]
[1721300036667,12.15,159.3,159.27,0.94660253]
[1721300036865,12.15,159.3,159.28,0.94668282]
[1721300037463,12.15,159.31,159.28,0.94668282]
[1721300037865,12.15,159.31,159.27,0.94656829]
[1721300038390,1.56926888,159.33,159.27,13.09656829]
[1721300038391,12.15,159.32,159.27,13.09656829]
[1721300038592,12.15,159.32,159.28,45.0]
[1721300038766,12.15,159.32,159.29,0.94646589]
[1721300039162,16.0672528,159.34,159.29,0.94646589]
[1721300039388,12.15,159.32,159.29,0.94646589]
[1721300040080,12.15,159.31,159.29,0.94646589]
[1721300040786,12.15,159.3,159.29,0.94651459]
[1721300040977,12.15,159.31,159.26,13.09664282]
[1721300041178,12.15,159.31,159.27,45.94649029]
[1721300041891,17.63645768,159.34,159.27,45.94649029]
[1721300042188,12.15,159.32,159.27,45.94649029]
[1721300043288,12.15,159.33,159.28,1.45231856]
[1721300043588,12.15,159.33,159.29,0.94591597]
[1721300043899,12.15,159.32,159.3,0.94597845]
[1721300044775,16.0672528,159.34,159.29,0.94610991]
[1721300044776,12.15,159.33,159.29,0.94610991]
[1721300044988,12.15,159.33,159.3,0.94600237]
[1721300046098,0.8200528,159.34,159.3,0.94600237]
[1721300046302,12.9700528,159.34,159.3,0.94600237]
[1721300049586,12.9700528,159.34,159.3,2.39813859]
[1721300050178,0.8200528,159.34,159.3,2.39813859]
[1721300050404,0.8200528,159.34,159.31,1.45204507]
[1721300050699,0.8200528,159.34,159.32,0.94519137]
[1721300050887,0.8200528,159.34,159.33,0.9453736]
[1721300054794,0.8200528,159.34,159.33,13.0953736]
[1721300055010,0.8200528,159.34,159.33,58.0953736]
[1721300055380,0.8200528,159.34,159.33,57.15]
[1721300058003,0.8200528,159.34,159.33,58.09469277]
[1721300058888,0.8200528,159.34,159.33,46.4518628]
[1721300059707,0.8200528,159.34,159.33,1.4518628]
[1721300059884,0.8200528,159.34,159.28,0.94590821]
[1721300059885,12.9700528,159.34,159.28,0.94590821]
[1721300060081,1.56914591,159.33,159.28,0.94590821]
[1721300060404,12.15,159.3,159.28,0.94590821]
[1721300060603,12.15,159.3,159.25,0.94654113]
[1721300060788,12.15,159.3,159.25,2.39913328]
[1721300061404,12.15,159.3,159.26,0.94655874]
[1721300061593,12.15,159.29,159.26,0.94655874]
[1721300061790,1.56934616,159.32,159.26,0.94655874]
[1721300061791,12.15,159.28,159.26,0.94655874]
[1721300062497,12.15,159.29,159.26,0.94655874]
[1721300063102,12.15,159.3,159.26,0.94655874]
[1721300063305,12.15,159.29,159.26,0.94655874]
[1721300065198,12.15,159.31,159.26,13.09655874]
[1721300065406,12.15,159.32,159.27,45.0]
[1721300065606,12.15,159.32,159.28,0.94615936]
[1721300065796,28.7298,159.33,159.28,0.94615936]
[1721300065995,12.15,159.33,159.28,0.94615936]
[1721300066390,0.8200528,159.34,159.28,0.94615936]
[1721300066595,12.15,159.32,159.28,0.94615936]
[1721300067914,0.8200528,159.34,159.28,2.39847792]
[1721300068098,12.15,159.32,159.28,2.39847792]
[1721300068294,12.15,159.32,159.28,1.45231856]
[1721300070489,12.15,159.32,159.29,0.94605658]
[1721300070700,12.15,159.31,159.28,1.45231856]
[1721300070926,12.15,159.31,159.29,0.94640695]
[1721300071098,12.15,159.31,159.28,1.45231856]
[1721300071618,12.15,159.31,159.29,0.94642817]
[1721300072614,12.15,159.31,159.28,1.45231856]
[1721300073610,12.15,159.31,159.29,0.94642994]
[1721300074612,12.15,159.32,159.29,0.94642994]
[1721300076215,12.15,159.32,159.28,1.45231856]
[1721300076422,12.15,159.3,159.28,1.45231856]
[1721300078003,12.15,159.3,159.28,2.39899047]
[1721300079402,12.15,159.3,159.28,1.45231856]
[1721300081616,12.15,159.3,159.27,45.0]
[1721300081826,12.15,159.29,159.26,45.0]
[1721300081998,12.15,159.28,159.26,45.0]
[1721300082327,12.15,159.28,159.25,45.0]
[1721300082511,12.15,159.28,159.24,45.0]
[1721300082710,12.15,159.28,159.24,45.94712785]
[1721300083507,12.15,159.29,159.24,58.09712785]
[1721300085508,17.39830169,159.32,159.24,59.54981122]
[1721300085728,12.15,159.3,159.24,59.54981122]
[1721300086231,12.15,159.29,159.24,59.54981122]
[1721300088348,1.56935941,159.31,159.24,59.54981122]
[1721300088539,12.15,159.29,159.24,59.54981122]
[1721300089534,12.15,159.28,159.24,47.39981122]
[1721300089907,1.56935941,159.31,159.24,46.45268337]
[1721300089908,12.15,159.27,159.24,46.45268337]
[1721300090602,12.15,159.25,159.24,1.45268337]
[1721300091029,12.15,159.25,159.2,9.42876767]
[1721300091336,12.15,159.25,159.2,10.88181604]
[1721300091536,12.15,159.25,159.2,1.45304837]
[1721300091830,12.15,159.25,159.2,46.45304837]
[1721300092011,12.15,159.25,159.21,0.94788214]
[1721300092417,12.15,159.26,159.21,0.94788214]
[1721300092732,12.15,159.27,159.22,12.15]
[1721300092928,15.8288,159.32,159.23,47.40000113]
[1721300092929,12.15,159.29,159.23,47.40000113]
[1721300093135,12.15,159.29,159.24,14.54947746]
[1721300093306,12.15,159.29,159.25,45.0]
[1721300093507,12.15,159.28,159.25,45.0]
[1721300093809,12.15,159.29,159.26,0.94704274]
[1721300095008,12.15,159.29,159.27,0.9469679]
[1721300095211,12.15,159.28,159.24,46.45268337]
[1721300095427,12.15,159.27,159.24,46.45268337]
[1721300095632,12.15,159.27,159.25,0.94737484]
[1721300096129,12.15,159.26,159.25,0.94737484]
[1721300097731,12.15,159.26,159.24,1.45268337]
[1721300098037,12.15,159.25,159.23,45.0]
[1721300098235,12.15,159.24,159.2,9.4301964]
[1721300098440,12.15,159.24,159.2,1.45304837]
[1721300099145,12.15,159.24,159.21,0.9479927]
[1721300099521,12.15,159.25,159.21,0.9479927]
[1721300099712,12.15,159.25,159.21,45.9479927]
[1721300100206,12.15,159.24,159.21,45.9479927]
[1721300101436,12.15,159.23,159.21,45.9479927]
[1721300101623,15.6686,159.31,159.22,1.45286585]
[1721300101812,12.15,159.28,159.23,13.09708535]
[1721300102128,12.15,159.28,159.24,45.0]
[1721300102332,12.15,159.28,159.25,0.94724381]
[1721300102524,1.56947005,159.3,159.25,0.94724381]
[1721300102832,12.15,159.28,159.25,0.94724381]
[1721300103612,12.15,159.3,159.25,0.94724381]
[1721300103826,12.15,159.3,159.25,13.09724381]
[1721300104138,12.15,159.3,159.26,45.0]
[1721300104441,12.15,159.3,159.27,0.94690752]
[1721300104816,7.38224955,159.34,159.27,2.39931727]
[1721300105030,12.15,159.32,159.27,2.39931727]
[1721300105437,12.15,159.31,159.27,2.39931727]
[1721300106418,12.15,159.3,159.27,2.39931727]
[1721300106626,12.15,159.29,159.27,2.39931727]
[1721300107036,2.38927319,159.34,159.27,2.39931727]
[1721300107230,12.15,159.3,159.27,2.39931727]
[1721300109621,12.15,159.31,159.27,2.39931727]
[1721300110318,2.38927319,159.34,159.27,2.39931727]
[1721300110630,0.8200528,159.34,159.29,12.15]
[1721300110833,0.8200528,159.34,159.3,58.09574015]
[1721300111237,0.8200528,159.34,159.3,45.94574015]
[1721300111420,12.9700528,159.34,159.3,45.94574015]
[1721300111620,0.8200528,159.34,159.3,58.09574015]
[1721300111937,0.8200528,159.34,159.3,59.54787637]
[1721300112137,0.8200528,159.34,159.31,0.94553508]
[1721300112445,12.9700528,159.34,159.31,0.94553508]
[1721300112624,12.15,159.33,159.3,46.45213622]
[1721300113147,12.15,159.33,159.31,0.94577643]
[1721300113722,12.15,159.32,159.3,1.45213622]
[1721300113956,12.15,159.31,159.26,0.94623451]
[1721300114253,12.15,159.28,159.27,0.94672986]
[1721300114433,12.15,159.28,159.24,0.94705246]
[1721300114650,1.56945635,159.32,159.24,2.39973583]
[1721300114844,12.15,159.29,159.24,2.39973583]
[1721300115851,12.15,159.3,159.24,59.54973583]
[1721300116355,12.15,159.29,159.24,59.54973583]
[1721300118632,12.15,159.29,159.25,1.45259215]
[1721300118948,2.38943649,159.34,159.26,0.94674679]
[1721300118949,12.15,159.31,159.26,0.94674679]
[1721300119246,12.15,159.31,159.25,58.60259215]
[1721300119247,12.15,159.31,159.27,0.9464358]
[1721300120439,12.15,159.28,159.26,0.94655611]
[1721300120964,12.15,159.27,159.25,46.45259215]
[1721300121247,17.32063895,159.31,159.22,0.94750805]
[1721300121248,12.15,159.26,159.22,0.94750805]
[1721300121444,12.15,159.24,159.2,22.0142]
[1721300121644,12.15,159.24,159.21,1.4529571]
[1721300122825,12.15,159.24,159.21,46.4529571]
[1721300123725,1.56981169,159.28,159.22,0.94792658]
[1721300123933,12.15,159.25,159.22,0.94792658]
[1721300124537,12.15,159.26,159.22,0.94792658]
[1721300126860,12.15,159.25,159.22,0.94792658]
[1721300128137,12.15,159.24,159.22,0.94792658]
[1721300128344,12.15,159.23,159.22,0.94792658]
[1721300128555,12.15,159.23,159.21,1.4529571]
[1721300128849,12.15,159.23,159.22,0.94826162]
[1721300129455,12.15,159.24,159.22,0.94826162]
[1721300130455,12.15,159.23,159.22,0.94826162]
[1721300130666,12.15,159.23,159.21,1.4529571]
[1721300130846,12.15,159.23,159.22,0.94829045]
[1721300131044,12.15,159.25,159.22,0.94829045]
[1721300131856,12.15,159.24,159.22,0.94829045]
[1721300132162,12.15,159.23,159.22,0.94829045]
[1721300133065,12.15,159.23,159.21,46.4529571]
[1721300134266,12.15,159.23,159.22,0.948381]
[1721300134441,12.15,159.25,159.22,0.948381]
[1721300135644,1.56977169,159.3,159.22,14.55124685]
[1721300135852,12.15,159.27,159.23,45.0]
[1721300136056,12.15,159.27,159.24,0.94742469]
[1721300137858,12.15,159.28,159.24,0.94742469]
[1721300139562,28.62815225,159.31,159.24,2.40010806]
[1721300139752,12.15,159.28,159.24,2.40010806]
[1721300140568,12.15,159.27,159.24,2.40010806]
[1721300142347,12.15,159.28,159.24,2.40010806]
[1721300143757,28.62815225,159.31,159.24,2.40010806]
[1721300143952,12.15,159.28,159.24,2.40010806]
[1721300144766,12.15,159.27,159.24,2.40010806]
[1721300145272,12.15,159.26,159.24,2.40010806]
[1721300146578,7.52763585,159.3,159.24,1.45268337]
[1721300146754,12.15,159.25,159.24,1.45268337]
[1721300147471,12.15,159.25,159.24,2.40053181]
[1721300147654,12.15,159.26,159.24,2.40053181]
[1721300148474,12.15,159.28,159.24,2.40053181]
[1721300150466,12.15,159.28,159.24,1.45268337]
[1721300150994,12.15,159.27,159.24,1.45268337]
[1721300153496,12.15,159.28,159.25,0.94729508]
[1721300154366,12.15,159.29,159.25,0.94729508]
[1721300154564,12.15,159.29,159.25,47.39988723]
[1721300154960,12.15,159.29,159.25,2.39988723]
[1721300160690,12.15,159.28,159.25,2.39988723]
[1721300162788,12.15,159.27,159.25,2.39988723]
[1721300163285,12.15,159.26,159.25,1.45259215]
[1721300163486,12.15,159.26,159.25,2.4001267]
[1721300163691,1.56951011,159.31,159.25,2.4001267]
[1721300163890,8.66538774,159.34,159.25,2.4001267]
[1721300164063,12.15,159.28,159.25,2.4001267]
[1721300164565,12.15,159.27,159.25,2.4001267]
[1721300164763,12.15,159.28,159.25,2.4001267]
[1721300167370,12.15,159.29,159.25,2.4001267]
[1721300172185,12.15,159.28,159.25,2.4001267]
[1721300174484,12.15,159.27,159.25,1.45259215]
[1721300175182,12.15,159.27,159.25,2.39984489]
[1721300175372,12.15,159.28,159.25,2.39984489]
[1721300177470,1.56952673,159.33,159.25,14.54984489]
[1721300177696,12.15,159.32,159.27,12.15]
[1721300177990,12.15,159.32,159.28,45.94637004]
[1721300178590,0.8200528,159.34,159.28,58.09637004]
[1721300178770,12.9700528,159.34,159.29,12.15]
[1721300178973,12.9700528,159.34,159.28,45.94637004]
[1721300178974,0.8200528,159.34,159.3,58.09589348]
[1721300179279,12.9700528,159.34,159.31,45.0]
[1721300179473,0.8200528,159.34,159.32,0.94589444]
[1721300181011,0.8200528,159.34,159.33,0.94589222]
[1721300181384,0.8200528,159.34,159.33,45.94589222]
[1721300181888,0.8200528,159.34,159.33,58.09589222]
[1721300182093,0.8200528,159.34,159.33,58.26589222]
[1721300184009,0.8200528,159.34,159.33,73.55029222]
[1721300184295,0.8200528,159.34,159.33,83.55029222]
[1721300184493,0.8200528,159.34,159.33,83.72029222]
[1721300184678,0.8200528,159.34,159.33,85.17215502]
[1721300186000,0.8200528,159.34,159.33,75.17215502]
[1721300186299,0.8200528,159.34,159.33,75.00215502]
[1721300188207,0.8200528,159.34,159.33,59.54775502]
[1721300188390,0.8200528,159.34,159.33,47.39775502]
[1721300188589,0.8200528,159.34,159.33,59.71775502]
[1721300190201,0.8200528,159.34,159.33,59.54775502]
[1721300190986,0.8200528,159.34,159.33,59.88775502]
[1721300192406,0.8200528,159.34,159.33,59.71775502]
[1721300201117,0.8200528,159.34,159.33,59.54775502]
[1721300201419,0.8200528,159.34,159.33,47.39775502]
[1721300201603,0.8200528,159.34,159.33,47.56775502]
[1721300201917,0.8200528,159.34,159.33,59.71775502]
[1721300202717,0.8200528,159.34,159.33,47.39775502]
[1721300206319,0.8200528,159.34,159.33,59.71775502]
[1721300211816,0.8200528,159.34,159.33,47.56775502]
[1721300212018,0.8200528,159.34,159.33,59.71775502]
[1721300215515,0.8200528,159.34,159.33,47.56775502]
[1721300215826,0.8200528,159.34,159.33,1.4518628]
[1721300216000,12.9700528,159.34,159.33,1.4518628]
[1721300218506,0.8200528,159.34,159.33,1.4518628]
[1721300219919,0.8200528,159.34,159.33,2.39723812]
[1721300221054,12.9700528,159.34,159.33,2.39723812]
[1721300221412,0.8200528,159.34,159.33,2.39723812]
[1721300231732,0.8200528,159.34,159.33,1.4518628]
[1721300231733,12.9700528,159.34,159.33,1.4518628]
[1721300232250,12.9700528,159.34,159.28,0.94589181]
[1721300232423,12.15,159.31,159.28,0.94589181]
[1721300232825,12.15,159.32,159.28,0.94589181]
[1721300233620,12.15,159.32,159.28,47.39821037]
[1721300235048,12.15,159.33,159.29,1.45222739]
[1721300235217,0.8200528,159.34,159.3,0.9459082]
[1721300235218,12.9700528,159.34,159.3,0.9459082]
[1721300235733,0.8200528,159.34,159.3,69.54804442]
[1721300235930,0.8200528,159.34,159.31,1.62204507]
[1721300236128,0.8200528,159.34,159.32,0.94550863]
[1721300236346,0.8200528,159.34,159.33,0.94537253]
[1721300237350,0.8200528,159.34,159.32,0.94542738]
[1721300237548,0.8200528,159.34,159.33,0.94542435]
[1721300239019,0.8200528,159.34,159.33,2.39728715]
[1721300239222,0.8200528,159.34,159.33,47.39728715]
[1721300239753,0.8200528,159.34,159.33,1.4518628]
[1721300239926,0.8200528,159.34,159.33,47.39718004]
[1721300245124,0.8200528,159.34,159.33,2.39718004]
[1721300257257,0.8200528,159.34,159.33,14.71718004]
[1721300257442,0.8200528,159.34,159.33,59.71718004]
[1721300261675,0.8200528,159.34,159.33,59.88718004]
[1721300263950,0.8200528,159.34,159.33,47.73718004]
[1721300264150,0.8200528,159.34,159.33,59.88718004]
[1721300271458,0.8200528,159.34,159.33,47.73718004]
[1721300271666,0.8200528,159.34,159.33,47.56718004]
[1721300272768,0.8200528,159.34,159.33,2.39718004]
[1721300272976,0.8200528,159.34,159.33,47.39732643]
[1721300274996,0.8200528,159.34,159.33,47.56732643]
[1721300277489,0.8200528,159.34,159.33,59.71732643]
[1721300282195,0.8200528,159.34,159.33,47.56732643]
[1721300286695,0.8200528,159.34,159.33,47.73732643]
[1721300287485,0.8200528,159.34,159.33,47.56732643]
[1721300290294,0.8200528,159.34,159.33,59.71732643]
[1721300290673,0.8200528,159.34,159.33,47.56732643]
[1721300293174,0.8200528,159.34,159.33,47.73732643]
[1721300293373,0.8200528,159.34,159.33,59.88732643]
[1721300295493,0.8200528,159.34,159.33,47.73732643]
[1721300296122,0.8200528,159.34,159.33,47.56732643]
[1721300298073,0.8200528,159.34,159.33,46.4518628]
[1721300301988,12.9700528,159.34,159.31,0.94526012]
[1721300302180,12.15,159.32,159.29,0.94607301]
[1721300302379,12.15,159.32,159.3,0.94628076]
[1721300305310,0.8200528,159.34,159.3,0.94610609]
[1721300305517,12.15,159.31,159.3,0.94610609]
[1721300305812,12.15,159.31,159.29,1.45222739]
[1721300306388,12.15,159.31,159.3,0.94638551]
[1721300306690,0.8200528,159.34,159.3,0.94638551]
[1721300307210,0.8200528,159.34,159.31,1.45204507]
[1721300307389,0.8200528,159.34,159.32,0.94554457]
[1721300307590,0.8200528,159.34,159.33,0.94561921]
[1721300308601,0.8200528,159.34,159.32,0.94564169]
[1721300308917,0.8200528,159.34,159.33,0.94564366]
[1721300309805,0.8200528,159.34,159.32,0.94564714]
[1721300310006,0.8200528,159.34,159.33,0.94564615]
[1721300311010,0.8200528,159.34,159.32,0.94564736]
[1721300311221,0.8200528,159.34,159.33,0.9456492]
[1721300311516,0.8200528,159.34,159.32,0.94565119]
[1721300311713,0.8200528,159.34,159.33,0.94565478]
[1721300311905,0.8200528,159.34,159.33,2.39751758]
[1721300312099,0.8200528,159.34,159.33,47.39751758]
[1721300312496,0.8200528,159.34,159.33,2.39751758]
[1721300315918,12.9700528,159.34,159.33,2.39751758]
[1721300316219,12.9700528,159.34,159.33,1.4518628]
[1721300316516,0.8200528,159.34,159.33,2.39761282]
[1721300317514,12.9700528,159.34,159.33,2.39761282]
[1721300317720,12.9700528,159.34,159.33,1.4518628]
[1721300320197,12.9700528,159.34,159.32,45.0]
[1721300320408,12.15,159.33,159.32,45.0]
[1721300323631,12.9700528,159.34,159.32,45.0]
[1721300323824,12.9700528,159.34,159.33,0.94577424]
[1721300324001,0.8200528,159.34,159.33,0.94577424]
[1721300334136,12.9300528,159.34,159.32,45.0]
[1721300334317,12.11,159.33,159.32,45.0]
[1721300336514,12.9300528,159.34,159.32,45.0]
[1721300340827,1.56896147,159.33,159.29,0.94594631]
[1721300341163,12.11,159.3,159.28,0.94654225]
[1721300341818,9.42605322,159.3,159.28,0.94654225]
[1721300342036,9.42605322,159.3,159.27,0.94662818]
[1721300342241,12.11,159.32,159.27,14.50890106]
[1721300342538,21.53580245,159.32,159.28,1.79231856]
[1721300342742,12.11,159.32,159.29,0.94626214]
[1721300343048,12.11,159.33,159.3,0.9462143]
[1721300343746,0.8200528,159.34,159.3,0.9462143]
[1721300343747,0.8200528,159.34,159.31,0.17]
[1721300343917,0.8200528,159.34,159.31,46.28549369]
[1721300344250,0.8200528,159.34,159.31,47.73753876]
[1721300345316,12.9300528,159.34,159.31,47.56753876]
[1721300345512,12.11,159.33,159.31,47.39753876]
[1721300345711,12.9300528,159.34,159.31,47.39753876]